bitfinex-derivatives/quotes_SOLF0:USTF0_20260107
["timestamp","ask_amount","ask_price","bid_price","bid_amount"]
[1767799391749,6.6291,135.89,135.77,6.6344]
[1767799392047,3.87593227,135.89,135.79,3.77913945]
[1767799392247,3.87593227,135.91,135.8,3.77913945]
[1767799392547,3.87593227,135.91,135.81,6.6325]
[1767799393350,3.87593227,135.91,135.82,6.632]
[1767799393547,87.08,135.92,135.82,3.77913945]
[1767799395048,3.87593227,135.91,135.82,3.77913945]
[1767799395251,87.08,135.92,135.83,3.77913945]
[1767799395450,3.87593227,135.94,135.83,10.41063945]
[1767799395650,3.87593227,135.92,135.8,90.83913945]
[1767799396047,3.87593227,135.92,135.82,3.77913945]
[1767799396744,87.06,135.94,135.84,6.631]
[1767799396745,90.93593227,135.94,135.84,6.631]
[1767799397351,97.56243227,135.94,135.84,6.631]
[1767799398050,90.93593227,135.94,135.85,10.40953945]
[1767799398252,90.93593227,135.94,135.85,3.77913945]
[1767799398653,3.87593227,135.97,135.85,3.77913945]
[1767799398852,3.87593227,135.97,135.85,90.81913945]
[1767799399254,3.87593227,135.95,135.83,87.04]
[1767799399457,3.87593227,135.95,135.83,90.81913945]
[1767799399862,3.87593227,135.93,135.81,93.6522]
[1767799400049,3.87593227,135.93,135.81,6.6322]
[1767799400249,3.87593227,135.92,135.82,6.6321]
[1767799400553,3.87593227,135.91,135.78,87.02]
[1767799401059,6.629,135.89,135.79,6.6335]
[1767799401255,3.87593227,135.88,135.78,3.77913945]
[1767799401957,3.87593227,135.86,135.74,3.77913945]
[1767799402166,3.87593227,135.85,135.74,3.77913945]
[1767799402363,10.50683227,135.85,135.75,6.6355]
[1767799402660,3.87593227,135.85,135.74,3.77913945]
[1767799402858,3.87593227,135.85,135.72,6.637]
[1767799402859,6.6324,135.82,135.72,6.637]
[1767799403056,10.50833227,135.82,135.72,6.637]
[1767799403256,3.87593227,135.81,135.66,103.2871]
[1767799403458,3.87593227,135.81,135.67,87.02]
[1767799403661,10.50923227,135.8,135.7,6.6377]
[1767799403857,3.87593227,135.8,135.67,87.02]
[1767799404258,3.87593227,135.79,135.67,103.2819]
[1767799404456,3.87593227,135.79,135.68,87.02]
[1767799404866,6.6343,135.78,135.69,6.6384]
[1767799405267,3.87593227,135.79,135.69,6.6384]
[1767799405469,3.87593227,135.79,135.68,87.02]
[1767799405856,93.6735,135.8,135.69,0.40241815]
[1767799406264,87.04,135.8,135.71,6.6373]
[1767799407470,3.87593227,135.79,135.66,0.40241815]
[1767799407668,3.87593227,135.79,135.67,87.04]
[1767799407868,10.51033227,135.78,135.67,6.6392]
[1767799408071,3.87593227,135.77,135.66,0.40241815]
[1767799408673,90.93593227,135.77,135.66,0.40241815]
[1767799408876,3.87593227,135.76,135.66,0.40241815]
[1767799409458,3.87593227,135.75,135.64,6.6406]
[1767799409976,3.87593227,135.74,135.64,6.6406]
[1767799410364,3.87593227,135.73,135.62,6.6417]
[1767799410570,10.51273227,135.73,135.61,0.40241815]
[1767799410871,3.87593227,135.73,135.62,0.40241815]
[1767799411369,3.87593227,135.73,135.64,6.6407]
[1767799411866,3.87593227,135.73,135.65,6.64]
[1767799412570,3.87593227,135.73,135.64,0.4060624]
[1767799412770,3.87593227,135.73,135.63,6.6413]
[1767799413874,3.87593227,135.73,135.65,6.6405]
[1767799414374,3.87593227,135.73,135.64,6.6409]
[1767799414563,3.87593227,135.73,135.63,0.4060624]
[1767799415276,3.92794704,135.71,135.61,6.6421]
[1767799415777,3.92794704,135.7,135.61,6.6421]
[1767799417167,3.92794704,135.69,135.59,6.6431]
[1767799417371,3.92794704,135.69,135.59,0.4060624]
[1767799417578,95.33670057,135.71,135.59,0.4060624]
[1767799417966,3.92794704,135.7,135.59,0.4060624]
[1767799418773,3.92794704,135.7,135.61,6.6421]
[1767799418968,3.92794704,135.7,135.6,103.3349]
[1767799419276,3.92794704,135.7,135.6,103.7409624]
[1767799419870,3.92794704,135.7,135.6,0.4060624]
[1767799420674,3.92794704,135.7,135.58,87.08]
[1767799420675,3.92794704,135.69,135.59,6.6431]
[1767799421476,3.92794704,135.69,135.6,6.6429]
[1767799422367,3.92794704,135.69,135.61,6.6424]
[1767799422974,3.92794704,135.72,135.64,6.6408]
[1767799423467,3.92794704,135.72,135.6,190.4345]
[1767799423672,3.92794704,135.72,135.6,190.8405624]
[1767799423972,3.92794704,135.71,135.62,6.6417]
[1767799424582,3.92794704,135.71,135.63,6.6412]
[1767799424789,3.92794704,135.71,135.61,0.4060624]
[1767799425174,3.92794704,135.71,135.63,6.6413]
[1767799425568,3.92794704,135.74,135.64,6.6409]
[1767799425876,3.92794704,135.73,135.64,6.6409]
[1767799426074,3.92794704,135.73,135.65,6.6404]
[1767799426477,3.92794704,135.82,135.69,103.6682624]
[1767799426788,3.92794704,135.81,135.67,87.1]
[1767799426984,3.92794704,135.79,135.67,87.1]
[1767799427287,3.92794704,135.78,135.69,6.6383]
[1767799427478,3.92794704,135.78,135.67,87.1]
[1767799427978,3.92794704,135.78,135.66,103.6928624]
[1767799428182,3.92794704,135.78,135.66,190.7928624]
[1767799428490,3.92794704,135.78,135.67,0.4060624]
[1767799428778,3.92794704,135.76,135.64,103.7070624]
[1767799428979,3.92794704,135.76,135.67,0.4060624]
[1767799430688,3.92794704,135.76,135.68,6.6387]
[1767799431380,3.92794704,135.76,135.69,6.6384]
[1767799432286,87.12,135.78,135.69,6.6384]
[1767799432782,3.92794704,135.82,135.71,0.4060624]
[1767799432985,3.92794704,135.82,135.72,103.6500624]
[1767799433290,87.12,135.84,135.71,103.2484]
[1767799433291,3.92794704,135.83,135.71,103.2484]
[1767799433482,3.92794704,135.83,135.71,87.1]
[1767799433983,3.92794704,135.82,135.73,6.6364]
[1767799435489,10.55894704,135.85,135.73,0.4060624]
[1767799435689,3.92794704,135.85,135.74,0.4060624]
[1767799435891,3.92794704,135.87,135.77,7.0404624]
[1767799436289,3.92794704,135.87,135.77,0.4060624]
[1767799436481,3.92794704,135.85,135.75,6.6353]
[1767799437086,314.2255,135.88,135.73,6.6363]
[1767799437087,3.92794704,135.84,135.73,6.6363]
[1767799437386,3.92794704,135.84,135.72,87.08]
[1767799438194,3.92794704,135.84,135.72,0.4060624]
[1767799438391,3.92794704,135.82,135.72,0.4060624]
[1767799439693,3.92794704,135.82,135.72,7.0429624]
[1767799439894,10.56034704,135.82,135.72,7.0429624]
[1767799440491,3.92794704,135.79,135.69,7.0441624]
[1767799440694,3.92794704,135.79,135.69,0.4060624]
[1767799441297,3.92794704,135.79,135.69,7.0442624]
[1767799441799,3.92794704,135.79,135.69,6.6382]
[1767799442092,3.92794704,135.79,135.7,0.40615085]
[1767799442592,3.92794704,135.79,135.7,7.04405085]
[1767799443096,87.08,135.81,135.71,6.6374]
[1767799443301,87.08,135.81,135.7,0.40615085]
[1767799443594,4.02105493,135.85,135.73,0.40615085]
[1767799443997,4.02105493,135.85,135.74,0.40615085]
[1767799444998,4.02105493,135.81,135.67,103.2785]
[1767799445197,4.02105493,135.81,135.68,87.06]
[1767799445501,4.02105493,135.81,135.68,87.46615085]
[1767799445901,4.02105493,135.79,135.68,0.40615085]
[1767799446102,4.02105493,135.78,135.68,87.46615085]
[1767799447091,4.02105493,135.78,135.68,87.06]
[1767799447400,4.02105493,135.75,135.64,87.06]
[1767799447799,4.02105493,135.74,135.62,0.40615085]
[1767799447991,4.02105493,135.74,135.62,87.46615085]
[1767799448703,10.65785493,135.73,135.64,6.6409]
[1767799450295,10.65785493,135.73,135.62,87.46615085]
[1767799450296,4.02105493,135.73,135.65,6.6403]
[1767799450603,4.02105493,135.73,135.62,87.46615085]
[1767799450802,87.08,135.75,135.65,0.40615085]
[1767799451005,87.08,135.75,135.65,103.70075085]
[1767799451208,87.08,135.75,135.66,0.40615085]
[1767799451501,4.02105493,135.76,135.68,6.6388]
[1767799451705,4.02105493,135.76,135.67,0.40615085]
[1767799452102,4.02105493,135.76,135.67,87.48615085]
[1767799452312,4.02105493,135.76,135.67,94.12545085]
[1767799452497,4.02105493,135.79,135.67,87.48615085]
[1767799453199,6.6343,135.78,135.67,87.48615085]
[1767799453603,10.65535493,135.78,135.67,87.48615085]
[1767799454507,10.65535493,135.78,135.68,0.40615085]
[1767799454903,87.1,135.8,135.68,0.40615085]
[1767799455409,87.1,135.8,135.7,0.40615085]
[1767799455902,4.02105493,135.8,135.68,6.6387]
[1767799456100,4.02105493,135.8,135.68,93.7187]
[1767799456608,4.02105493,135.79,135.68,93.7187]
[1767799456909,4.02105493,135.79,135.69,6.6384]
[1767799458607,4.02105493,135.79,135.69,0.40615085]
[1767799458808,87.1,135.81,135.71,0.40615085]
[1767799459002,4.02105493,135.82,135.71,0.40615085]
[1767799459309,91.12105493,135.85,135.75,6.6355]
[1767799459502,91.12105493,135.85,135.74,0.40615085]
[1767799459701,4.02105493,135.85,135.75,87.48615085]
[1767799460202,4.02105493,135.85,135.76,0.40615085]
[1767799460405,96.20408172,135.88,135.76,0.40615085]
[1767799460602,91.12105493,135.88,135.76,87.48615085]
[1767799460798,91.12105493,135.88,135.77,0.40615085]
[1767799461404,4.02105493,135.87,135.77,0.40615085]
[1767799462311,4.02105493,135.86,135.76,87.06]
[1767799462614,4.02105493,135.86,135.75,87.06]
[1767799462907,4.02105493,135.84,135.74,6.6361]
[1767799463210,4.02105493,135.83,135.71,0.40615085]
[1767799463405,4.02105493,135.83,135.71,87.46615085]
[1767799463706,4.02105493,135.83,135.72,0.40615085]
[1767799464304,10.65345493,135.82,135.72,0.40615085]
[1767799464811,10.65345493,135.82,135.72,7.04305085]
[1767799465007,4.02105493,135.81,135.72,7.04305085]
[1767799466010,4.02105493,135.8,135.7,6.6377]
[1767799467007,10.65425493,135.8,135.71,6.6374]
[1767799467510,4.02105493,135.8,135.71,6.6374]
[1767799468215,4.02105493,135.8,135.72,6.637]
[1767799468416,4.02105493,135.8,135.69,0.40615085]
[1767799469713,10.65435493,135.8,135.7,6.6378]
[1767799470122,4.02105493,135.78,135.68,6.6389]
[1767799470513,4.02105493,135.75,135.65,1.00536085]
[1767799471604,4.02105493,135.77,135.66,0.40615085]
[1767799471810,4.02105493,135.77,135.67,0.40580002]
[1767799473221,4.02105493,135.77,135.65,87.65921]
[1767799473222,3.86612975,135.75,135.65,7.23931]
[1767799474215,3.86612975,135.75,135.66,6.6399]
[1767799474418,87.08,135.77,135.66,0.40580002]
[1767799474619,87.08,135.77,135.67,0.40580002]
[1767799475625,87.08,135.77,135.69,6.6385]
[1767799476016,87.08,135.77,135.67,0.40580002]
[1767799476217,3.86612975,135.78,135.7,6.638]
[1767799478411,3.86612975,135.77,135.68,6.6387]
[1767799478815,10.50092975,135.77,135.67,0.40580002]
[1767799479619,93.714,135.79,135.7,7.04360002]
[1767799480026,3.86612975,135.78,135.7,6.6378]
[1767799481727,3.86612975,135.78,135.71,6.6375]
[1767799482040,87.08,135.79,135.7,0.40580002]
[1767799482333,10.50032975,135.78,135.7,6.6376]
[1767799482510,10.50032975,135.78,135.67,0.40580002]
[1767799483619,3.86612975,135.77,135.67,0.40580002]
[1767799483829,10.50092975,135.77,135.67,0.40580002]
[1767799484027,3.86612975,135.77,135.67,0.40580002]
[1767799485145,10.50132975,135.76,135.67,0.40580002]
[1767799485624,3.86612975,135.76,135.68,7.04480002]
[1767799486221,3.86612975,135.76,135.69,6.6385]
[1767799487125,3.86612975,135.75,135.66,87.08]
[1767799487428,3.86612975,135.75,135.66,87.48580002]
[1767799487633,3.86612975,135.75,135.66,0.40580002]
[1767799488723,11.71762679,135.78,135.67,0.40580002]
[1767799488925,15.58375654,135.78,135.67,0.40580002]
[1767799489325,3.86612975,135.78,135.68,103.67930002]
[1767799489535,3.86612975,135.78,135.69,0.40580002]
[1767799489731,92.18302679,135.81,135.74,6.636]
[1767799489732,3.86612975,135.81,135.74,6.636]
[1767799490828,3.86612975,135.81,135.68,87.08]
[1767799491135,10.49992975,135.79,135.7,6.638]
[1767799491435,3.86612975,135.79,135.67,87.08]
[1767799491636,6.6342,135.78,135.69,6.6384]
[1767799491830,3.86612975,135.77,135.64,9.09597299]
[1767799492028,3.86612975,135.77,135.66,87.08]
[1767799492720,3.86612975,135.77,135.66,190.3637]
[1767799493641,3.86612975,135.77,135.7,6.638]
[1767799493936,3.86612975,135.77,135.66,190.3637]
[1767799494141,3.86612975,135.77,135.67,87.08]
[1767799494331,90.96612975,135.79,135.67,87.08]
[1767799495136,97.60002975,135.79,135.71,6.6375]
[1767799495834,97.60002975,135.79,135.69,93.7182]
[1767799496034,97.60002975,135.79,135.69,87.08]
[1767799496734,10.50002975,135.79,135.69,87.08]
[1767799496932,3.86612975,135.78,135.68,87.08]
[1767799497944,6.6336,135.8,135.68,190.3484]
[1767799498442,93.7327,135.82,135.72,6.637]
[1767799498632,6.6327,135.82,135.7,103.258]
[1767799498829,6.6327,135.82,135.71,87.08]
[1767799499636,6.6327,135.82,135.73,6.6364]
[1767799500038,3.86612975,135.83,135.73,103.2322]
[1767799500240,3.86612975,135.86,135.74,103.228]
[1767799500433,3.86612975,135.86,135.75,87.08]
[1767799501251,3.86612975,135.86,135.77,6.6344]
[1767799503044,3.73141174,135.85,135.72,87.06]
[1767799503254,3.73141174,135.82,135.72,87.06]
[1767799503950,90.81141174,135.85,135.72,87.06]
[1767799504150,3.73141174,135.84,135.72,87.06]
[1767799504451,3.73141174,135.84,135.7,103.258]
[1767799504651,3.73141174,135.83,135.7,190.318]
[1767799504842,3.73141174,135.81,135.71,6.6372]
[1767799505038,3.73141174,135.81,135.68,103.2709]
[1767799505249,3.73141174,135.81,135.69,87.06]
[1767799505954,3.64643669,135.76,135.65,9.09597299]
[1767799506150,3.64643669,135.76,135.63,199.46497299]
[1767799506356,3.64643669,135.76,135.63,190.369]
[1767799506553,190.2818,135.78,135.64,87.06]
[1767799506554,3.64643669,135.75,135.64,87.06]
[1767799507454,3.64643669,135.73,135.64,87.06]
[1767799508559,3.64643669,135.72,135.62,87.06]
[1767799508755,3.64643669,135.72,135.61,87.06]
[1767799509264,3.64643669,135.7,135.59,87.06]
[1767799509663,3.64643669,135.7,135.57,112.45207299]
[1767799509962,3.64643669,135.7,135.6,6.6426]
[1767799510159,3.64643669,135.7,135.57,9.09597299]
[1767799510357,3.64643669,135.7,135.58,87.06]
[1767799510960,10.28563669,135.68,135.58,87.08]
[1767799511168,3.64643669,135.67,135.54,9.09597299]
[1767799511470,3.64643669,135.67,135.55,87.08]
[1767799512666,3.64643669,135.64,135.54,87.08]
[1767799516974,3.64643669,135.64,135.55,6.6452]
[1767799517273,3.64643669,135.64,135.53,87.1]
[1767799517663,3.64643669,135.64,135.54,6.6457]
[1767799518572,3.64643669,135.64,135.53,87.12]
[1767799518870,3.64643669,135.64,135.53,37.12]
[1767799519466,3.64643669,135.64,135.51,103.4001]
[1767799519664,3.64643669,135.64,135.52,190.5135]
[1767799519965,3.64643669,135.64,135.52,140.5135]
[1767799520160,3.64643669,135.64,135.54,6.6456]
[1767799520367,3.64643669,135.64,135.52,87.12]
[1767799521267,90.78643669,135.63,135.52,87.12]
[1767799521878,87.14,135.64,135.53,103.3881]
[1767799522376,3.64643669,135.63,135.53,93.786]
[1767799522667,3.64643669,135.63,135.53,6.646]
[1767799523173,3.64643669,135.64,135.52,103.3963]
[1767799523677,10.28753669,135.64,135.53,6.646]
[1767799524066,10.28813669,135.63,135.53,6.646]
[1767799524265,3.64643669,135.62,135.5,103.4085]
[1767799524465,3.64643669,135.62,135.51,87.14]
[1767799524770,6.6426,135.61,135.49,103.4167]
[1767799524976,3.64643669,135.6,135.47,103.4307]
[1767799525171,3.64643669,135.6,135.47,190.5707]
[1767799525476,3.64643669,135.58,135.46,190.5799]
[1767799525672,3.64643669,135.58,135.46,103.4399]
[1767799525866,3.64643669,135.58,135.48,103.4269]
[1767799526261,3.64643669,135.58,135.51,6.6473]
[1767799526868,3.64643669,135.58,135.5,6.6478]
[1767799527474,3.64643669,135.58,135.51,6.6473]
[1767799527666,3.64643669,135.58,135.48,103.4269]
[1767799527864,103.3559,135.58,135.43,15.78300168]
[1767799528165,3.64643669,135.56,135.45,103.45]
[1767799528372,3.64643669,135.56,135.46,103.4414]
[1767799528670,3.64643669,135.56,135.47,103.4314]
[1767799528976,87.18,135.57,135.48,103.4235]
[1767799529174,87.18,135.57,135.51,6.6471]
[1767799530374,87.18,135.57,135.48,103.4235]
[1767799530375,87.18,135.57,135.52,6.6468]
[1767799531373,87.18,135.57,135.5,6.6474]
[1767799531674,87.18,135.57,135.48,103.4235]
[1767799531871,87.18,135.57,135.46,103.4414]
[1767799532077,3.8136437,135.56,135.46,103.4414]
[1767799532776,3.8136437,135.56,135.43,119.24400168]
[1767799532978,3.8136437,135.54,135.43,15.78300168]
[1767799533274,3.8136437,135.52,135.43,15.78300168]
[1767799533669,3.8136437,135.52,135.43,119.24270168]
[1767799534177,3.8136437,135.52,135.44,6.6505]
[1767799534984,3.8136437,135.52,135.45,6.6502]
[1767799536280,3.8136437,135.52,135.43,22.43390168]
[1767799536666,3.8136437,135.52,135.43,15.78300168]
[1767799537884,3.8136437,135.51,135.43,15.78300168]
[1767799538882,3.8136437,135.5,135.43,15.78300168]
[1767799539479,3.8136437,135.49,135.43,15.78300168]
[1767799539676,91.0336437,135.49,135.43,15.78300168]
[1767799541973,3.8136437,135.48,135.43,15.78300168]
[1767799542480,3.8136437,135.48,135.43,15.634197]
[1767799542886,87.22,135.49,135.43,15.634197]
[1767799543890,87.22,135.49,135.43,22.285397]
[1767799546290,87.22,135.49,135.44,6.6507]
[1767799546494,3.8136437,135.54,135.43,15.634197]
[1767799546690,87.24,135.53,135.43,15.634197]
[1767799546887,3.8136437,135.54,135.43,119.096197]
[1767799547082,87.24,135.53,135.43,119.096197]
[1767799547282,87.24,135.53,135.46,6.6497]
[1767799547883,87.24,135.53,135.47,6.6492]
[1767799548091,87.24,135.53,135.45,103.448]
[1767799548392,91.0536437,135.57,135.46,103.4415]
[1767799548595,91.0536437,135.57,135.5,6.6476]
[1767799549178,10.4567437,135.6,135.5,6.6476]
[1767799549393,3.8136437,135.59,135.5,6.6476]
[1767799550900,3.8136437,135.59,135.51,6.6472]
[1767799551283,87.24,135.6,135.48,103.426]
[1767799551490,87.24,135.6,135.53,6.6463]
[1767799552181,87.24,135.6,135.54,6.6457]
[1767799552387,3.8136437,135.62,135.53,103.3888]
[1767799552595,87.24,135.64,135.53,103.3888]
[1767799552790,3.8136437,135.63,135.53,103.3888]
[1767799553497,3.8136437,135.63,135.54,6.6455]
[1767799555990,3.8136437,135.63,135.55,6.6453]
[1767799556195,3.8136437,135.63,135.5,190.6079]
[1767799556402,3.8136437,135.63,135.51,103.4035]
[1767799556585,3.8136437,135.63,135.55,6.6453]
[1767799557396,87.22,135.64,135.57,6.6442]
[1767799557594,3.8136437,135.63,135.54,87.2]
[1767799557895,3.8136437,135.63,135.53,6.6461]
[1767799558494,91.0336437,135.63,135.53,6.6461]
[1767799558698,91.0336437,135.63,135.52,103.3927]
[1767799558897,91.0336437,135.63,135.54,103.3813]
[1767799558898,87.22,135.63,135.54,103.3813]
[1767799559097,87.22,135.63,135.55,103.3693]
[1767799559304,3.8136437,135.66,135.55,103.3693]
[1767799559994,3.8136437,135.66,135.55,190.5693]
[1767799560396,3.8136437,135.66,135.54,103.3813]
[1767799560595,3.8136437,135.66,135.53,87.2]
[1767799560897,3.8136437,135.64,135.53,87.2]
[1767799561103,3.8136437,135.64,135.52,103.3927]
[1767799561305,3.8136437,135.64,135.52,190.5927]
[1767799561507,87.2,135.65,135.58,6.6438]
[1767799561705,87.2,135.65,135.55,53.3707]
[1767799561706,3.8389059,135.65,135.53,103.3886]
[1767799562000,3.8389059,135.65,135.54,87.18]
[1767799562299,3.8389059,135.65,135.55,6.6452]
[1767799563009,3.8389059,135.65,135.48,103.4235]
[1767799563010,3.8389059,135.63,135.48,103.4235]
[1767799563201,3.8389059,135.62,135.5,87.18]
[1767799563501,3.8389059,135.61,135.49,103.4142]
[1767799563698,3.8389059,135.61,135.49,190.5942]
[1767799563904,3.8389059,135.61,135.5,103.4117]
[1767799564504,91.0389059,135.63,135.54,6.6458]
[1767799564701,91.0389059,135.63,135.51,103.4042]
[1767799564908,108.37258157,135.68,135.51,103.4042]
[1767799564909,3.8389059,135.62,135.51,87.18]
[1767799565109,3.8389059,135.62,135.52,6.6465]
[1767799565412,3.8389059,135.62,135.51,103.4029]
[1767799565614,87.2,135.63,135.55,6.6453]
[1767799565905,3.8389059,135.62,135.5,103.4117]
[1767799566108,3.8389059,135.62,135.51,87.18]
[1767799566602,3.8389059,135.62,135.51,6.647]
[1767799566799,3.8389059,135.62,135.5,190.5857]
[1767799567002,3.8389059,135.62,135.51,103.4043]
[1767799567407,87.2,135.64,135.54,6.6458]
[1767799567898,3.99526357,135.63,135.52,6.6466]
[1767799568601,3.99526357,135.61,135.5,6.6474]
[1767799568796,3.99526357,135.58,135.45,103.4459]
[1767799569002,3.99526357,135.57,135.44,87.18]
[1767799569400,3.99526357,135.57,135.43,119.097797]
[1767799569600,3.99526357,135.57,135.44,87.18]
[1767799570203,87.18,135.56,135.45,103.4491]
[1767799570404,87.18,135.56,135.47,103.4337]
[1767799570606,5.09128157,135.59,135.47,103.4337]
[1767799570807,9.08654514,135.59,135.47,103.4337]
[1767799571010,3.99526357,135.59,135.47,103.4337]
[1767799571307,93.8434,135.6,135.49,103.4182]
[1767799571308,87.2,135.6,135.49,103.4182]
[1767799571514,87.2,135.6,135.49,190.5982]
[1767799571712,3.99526357,135.61,135.49,190.5982]
[1767799572707,3.99526357,135.61,135.52,6.6467]
[1767799573407,3.99526357,135.61,135.49,190.5982]
[1767799573612,3.99526357,135.59,135.5,6.6475]
[1767799575507,3.99526357,135.58,135.48,6.6484]
[1767799575712,3.99526357,135.58,135.44,87.18]
[1767799575914,6.646,135.54,135.44,6.6506]
[1767799576115,3.99526357,135.53,135.44,6.6506]
[1767799576709,3.99526357,135.53,135.46,6.6496]
[1767799577316,87.2,135.54,135.47,6.6493]
[1767799577515,3.99526357,135.53,135.43,15.634197]
[1767799577905,3.99526357,135.53,135.43,22.285297]
[1767799578109,3.99526357,135.53,135.43,15.634197]
[1767799578814,3.99526357,135.56,135.44,103.4558]
[1767799579208,3.99526357,135.56,135.45,103.4493]
[1767799579413,3.99526357,135.56,135.46,190.638]
[1767799579608,87.2,135.58,135.47,103.4323]
[1767799579812,3.99526357,135.55,135.44,103.4558]
[1767799580016,91.19526357,135.58,135.46,103.4416]
[1767799580619,3.99526357,135.58,135.46,103.4416]
[1767799580810,3.99526357,135.58,135.46,190.6416]
[1767799581008,3.99526357,135.57,135.49,6.6483]
[1767799581526,3.99526357,135.57,135.47,6.6489]
[1767799581919,3.99526357,135.56,135.43,20.72547857]
[1767799582220,3.99526357,135.55,135.44,6.6504]
[1767799582422,3.99526357,135.53,135.44,6.6504]
[1767799582627,3.99526357,135.53,135.43,15.634197]
[1767799582822,91.21526357,135.53,135.43,15.634197]
[1767799583527,91.21526357,135.53,135.45,6.6502]
[1767799583723,87.22,135.53,135.43,119.096097]
[1767799584126,87.22,135.53,135.47,6.6493]
[1767799584427,3.99526357,135.56,135.45,103.4499]
[1767799584632,87.22,135.57,135.5,6.6477]
[1767799584923,3.99526357,135.59,135.47,190.634]
[1767799585313,3.99526357,135.59,135.49,6.6479]
[1767799585927,3.99526357,135.58,135.49,6.6479]
[1767799586414,3.99526357,135.56,135.47,6.6489]
[1767799588026,102.95044514,135.59,135.48,6.6488]
[1767799588226,3.99526357,135.58,135.48,6.6488]
[1767799589433,10.63926357,135.58,135.48,6.6488]
[1767799590235,10.63926357,135.58,135.49,6.6483]
[1767799590437,3.99526357,135.58,135.47,103.4347]
[1767799590628,3.99526357,135.58,135.46,190.6393]
[1767799590828,3.99526357,135.58,135.49,6.6483]
[1767799591230,3.99526357,135.58,135.47,103.431]
[1767799591428,87.22,135.59,135.51,6.6472]
[1767799591632,87.22,135.59,135.49,103.4161]
[1767799591832,87.22,135.59,135.49,190.6161]
[1767799592135,87.22,135.59,135.52,6.6466]
[1767799592338,3.99526357,135.61,135.5,103.4093]
[1767799593127,3.99526357,135.61,135.49,117.60335456]
[1767799593428,3.99526357,135.61,135.5,87.2]
[1767799593940,3.99526357,135.61,135.49,103.4161]
[1767799594242,3.99526357,135.61,135.5,87.2]
[1767799594535,3.96623539,135.6,135.5,87.2]
[1767799595234,3.96623539,135.6,135.52,6.6468]
[1767799595734,3.96623539,135.6,135.53,6.6463]
[1767799596132,3.96623539,135.6,135.51,6.6469]
[1767799596436,3.96623539,135.6,135.49,190.6157]
[1767799597035,3.96623539,135.6,135.5,103.4109]
[1767799597428,87.22,135.62,135.5,103.4109]
[1767799597429,87.22,135.62,135.51,103.4001]
[1767799597628,87.22,135.62,135.52,103.3959]
[1767799597930,87.22,135.62,135.52,190.5959]
[1767799598129,3.96623539,135.63,135.52,190.5959]
[1767799598528,3.96623539,135.63,135.54,6.6454]
[1767799598738,3.96623539,135.63,135.52,190.5959]
[1767799599234,3.96623539,135.63,135.55,6.6453]
[1767799599835,3.96623539,135.63,135.52,190.5959]
[1767799599836,3.96623539,135.63,135.53,6.646]
[1767799600133,3.96623539,135.63,135.52,87.2]
[1767799600839,87.2,135.64,135.54,103.38]
[1767799601331,3.96623539,135.66,135.58,6.6438]
[1767799604741,91.16623539,135.68,135.59,6.6432]
[1767799605142,3.96623539,135.67,135.57,6.6441]
[1767799605540,3.96623539,135.67,135.55,190.5499]
[1767799606342,3.96623539,135.67,135.55,103.3699]
[1767799606536,3.96623539,135.65,135.54,87.18]
[1767799607246,3.96623539,135.64,135.56,6.6449]
[1767799609855,3.96623539,135.64,135.54,6.6455]
[1767799610151,3.96623539,135.64,135.51,134.62607299]
[1767799610152,3.96623539,135.61,135.49,134.64277299]
[1767799610448,3.96623539,135.61,135.53,6.6463]
[1767799611046,3.96623539,135.61,135.51,6.647]
[1767799611247,3.96623539,135.61,135.49,212.7068]
[1767799611844,10.60883539,135.61,135.52,6.6468]
[1767799612044,3.96623539,135.6,135.49,87.16]
[1767799612253,3.96623539,135.6,135.47,134.65677299]
[1767799612544,3.96623539,135.59,135.47,103.4308]
[1767799612744,3.96623539,135.59,135.45,199.70187299]
[1767799612950,10.61073539,135.57,135.47,6.6491]
[1767799614853,3.96623539,135.57,135.48,6.6488]
[1767799615550,3.96623539,135.57,135.49,6.6483]
[1767799616650,3.96623539,135.57,135.5,6.6478]
[1767799617844,87.18,135.58,135.5,6.6478]
[1767799618050,87.18,135.58,135.49,103.4193]
[1767799618644,87.18,135.58,135.52,6.6468]